bitfinex/quotes_ETHUSD_20260313
["timestamp","ask_amount","ask_price","bid_price","bid_amount"]
[1773369961031,0.94715931,2108.8,2107.9,1.49816153]
[1773369961032,0.94715931,2108.6,2107.9,1.49816153]
[1773369961216,0.94715931,2108.6,2108.0,8.4308]
[1773369961416,0.94715931,2108.6,2107.9,1.49816153]
[1773369961818,2.08033394,2108.5,2108.0,1.66]
[1773369962023,0.94715931,2108.4,2108.0,1.66]
[1773369962233,0.94715931,2108.4,2107.9,1.49816153]
[1773369962423,0.94715931,2108.4,2107.9,9.92896153]
[1773369963009,0.94715931,2108.4,2106.2,0.36273474]
[1773369963010,0.94715931,2107.9,2106.2,0.36273474]
[1773369963210,0.94715931,2107.9,2106.3,0.04090866]
[1773369963211,0.94715931,2106.9,2106.3,0.04090866]
[1773369963409,0.94715931,2106.9,2106.4,2.4410859]
[1773369963721,0.94715931,2106.9,2106.4,1.656]
[1773369964103,0.94715931,2106.9,2106.4,1.21807298]
[1773369964728,0.94715931,2106.9,2106.5,1.66]
[1773369964933,0.94715931,2106.9,2106.6,0.001]
[1773369965105,2.13375057,2106.9,2106.6,0.001]
[1773369965435,6.82555597,2107.4,2106.6,0.001]
[1773369965436,0.94715931,2107.4,2106.6,0.001]
[1773369965635,0.34384532,2107.3,2106.8,2.08033394]
[1773369965832,0.34384532,2107.3,2106.9,0.04501581]
[1773369966409,2.32743394,2107.9,2107.0,7.286447]
[1773369966410,1.43314231,2107.9,2107.0,7.286447]
[1773369966735,1.43314231,2107.9,2106.6,2.08133394]
[1773369966736,2.47576486,2106.9,2104.0,9.638872]
[1773369966935,0.94715931,2105.6,2104.6,2.08033394]
[1773369967135,8.90807347,2106.5,2104.6,2.08033394]
[1773369967136,0.94715931,2105.9,2104.8,7.036033]
[1773369967313,0.94715931,2105.9,2104.7,3.70450854]
[1773369967519,0.94715931,2105.9,2104.9,4.09204]
[1773369967925,3.26742473,2106.0,2104.3,2.59915555]
[1773369967926,0.94715931,2105.6,2104.3,2.59915555]
[1773369968240,0.94715931,2105.4,2104.5,2.291683]
[1773369968533,0.94715931,2105.4,2104.6,1.672]
[1773369968707,0.94715931,2105.4,2104.3,3.0086109]
[1773369969036,0.94715931,2105.4,2104.5,8.74620984]
[1773369969235,0.94715931,2105.4,2104.5,3.26823478]
[1773369969726,0.94715931,2105.4,2104.6,3.70450854]
[1773369970129,2.13462866,2105.4,2104.6,3.70450854]
[1773369970326,2.13462866,2105.4,2104.7,1.678]
[1773369970636,4.16066788,2106.0,2104.7,1.678]
[1773369970637,0.94715931,2105.7,2104.7,3.75833394]
[1773369970840,0.94715931,2105.7,2104.8,3.70450854]
[1773369971036,0.94715931,2105.7,2104.9,1.68]
[1773369971341,2.13429187,2106.0,2105.0,7.635682]
[1773369971519,2.13429187,2106.0,2105.0,3.70450854]
[1773369971717,2.13429187,2106.0,2105.1,2.34407]
[1773369971915,2.13429187,2106.0,2105.2,1.682]
[1773369971916,0.94715931,2106.0,2105.2,1.682]
[1773369972135,5.69483538,2106.3,2105.2,3.76233394]
[1773369972340,2.13407475,2106.3,2105.3,3.70450854]
[1773369973036,0.94715931,2106.1,2105.4,1.685]
[1773369973216,2.13424383,2106.0,2105.3,3.70450854]
[1773369973423,2.13424383,2106.0,2105.4,1.686]
[1773369973739,4.21457777,2106.0,2105.5,1.687]
[1773369974236,2.13424383,2106.0,2105.5,1.687]
[1773369974439,2.13424383,2106.0,2105.5,5.39150854]
[1773369974941,2.13424383,2106.0,2105.6,1.689]
[1773369975639,2.13424383,2106.0,2104.9,1.564]
[1773369975640,0.94715931,2105.6,2104.3,8.71734896]
[1773369975830,2.0051109,2105.9,2104.5,0.92827696]
[1773369975831,0.94715931,2105.9,2104.5,0.92827696]
[1773369976218,0.94715931,2105.9,2104.7,4.51482]
[1773369976419,0.94715931,2105.9,2104.8,0.03247741]
[1773369976642,0.94715931,2105.9,2104.9,1.692]
[1773369976855,0.99217099,2105.9,2104.9,1.692]
[1773369977215,1.18719726,2105.8,2104.7,1.18781774]
[1773369977416,2.13435657,2105.8,2104.8,1.694]
[1773369977614,0.94715931,2105.7,2104.8,1.694]
[1773369977926,0.99217099,2105.7,2104.8,1.694]
[1773369978316,0.99217099,2105.7,2104.9,11.80338854]
[1773369978317,0.04501168,2105.7,2104.9,11.80338854]
[1773369978521,0.04501168,2105.8,2104.9,3.70450854]
[1773369979026,0.99217099,2105.8,2105.5,0.001]
[1773369979347,1.18725364,2105.7,2105.6,1.697]
[1773369979911,1.18725364,2105.7,2105.3,0.001]
[1773369979912,0.94715931,2105.6,2105.3,0.001]
[1773369980110,0.99217099,2105.6,2104.6,3.68214047]
[1773369980333,0.04501168,2105.6,2104.9,0.92827696]
[1773369980550,1.18723512,2105.8,2105.0,10.99661664]
[1773369980551,0.04501168,2105.7,2105.0,10.99661664]
[1773369980756,0.04501168,2105.7,2104.6,1.18786351]
[1773369980757,0.04501168,2105.7,2104.7,1.35774464]
[1773369980972,1.3506771,2105.7,2104.7,1.35774464]
[1773369981135,1.3506771,2105.7,2104.7,2.92374464]
[1773369981336,2.49297545,2105.6,2104.7,2.5455514]
[1773369981527,0.04501168,2105.5,2104.8,1.7]
[1773369981855,0.04501168,2105.5,2104.7,1.35774464]
[1773369982063,0.04501168,2105.5,2104.8,1.701]
[1773369982216,0.04501168,2105.5,2104.7,1.35774464]
[1773369982420,0.04501168,2105.5,2104.9,1.701]
[1773369982621,0.04501168,2105.5,2104.4,1.35774464]
[1773369982622,1.3506771,2105.5,2104.4,1.35774464]
[1773369982850,1.3506771,2105.5,2104.5,1.701]
[1773369983351,2.49308823,2105.4,2104.5,1.701]
[1773369983654,2.49308823,2105.4,2104.5,2.88892728]
[1773369984226,2.49308823,2105.4,2104.5,1.701]
[1773369984425,2.49308823,2105.4,2104.4,1.35774464]
[1773369984426,1.30566542,2105.3,2104.6,1.703]
[1773369985249,4.79470295,2105.5,2104.7,2.0051109]
[1773369985250,0.04501168,2105.5,2104.7,2.0051109]
[1773369985442,1.23236714,2105.6,2104.8,2.54546089]
[1773369985954,0.04501168,2105.7,2104.9,1.35774464]
[1773369986140,1.18697179,2106.2,2105.1,1.35774464]
[1773369986349,0.04501168,2106.1,2105.2,3.27]
[1773369986863,0.04501168,2106.1,2105.3,1.704]
[1773369987664,1.18700021,2106.2,2105.4,1.35774464]
[1773369987843,0.04501168,2106.2,2105.4,1.35774464]
[1773369988557,1.23200232,2106.2,2105.5,1.705]
[1773369988765,1.18699064,2106.2,2105.5,3.7101109]
[1773369988950,1.23193031,2106.3,2105.5,5.06785554]
[1773369989136,1.18691761,2106.3,2105.6,9.638872]
[1773369989337,1.18691761,2106.3,2105.5,3.36285554]
[1773369989537,1.18691761,2106.3,2105.7,1.706]
[1773369989751,1.18691761,2106.3,2105.2,4.74991687]
[1773369989752,0.04501168,2106.2,2105.8,1.706]
[1773369989952,0.04501168,2106.2,2105.9,1.706]
[1773369990164,0.23552186,2106.6,2106.0,1.706]
[1773369990331,1.18680275,2106.5,2106.1,1.706]
[1773369990538,1.18680275,2106.5,2106.2,1.706]
[1773369990840,2.49246817,2106.5,2105.6,1.35774464]
[1773369991037,2.49246817,2106.5,2105.5,3.5711109]
[1773369991463,2.49246817,2106.5,2105.5,2.0051109]
[1773369991639,0.002,2106.0,2105.5,6.11621608]
[1773369991832,0.002,2106.0,2105.6,1.707]
[1773369992261,0.002,2106.2,2105.8,3.36285554]
[1773369992468,0.002,2106.2,2105.8,1.35774464]
[1773369992760,1.18882224,2106.5,2105.8,1.35774464]
[1773369993467,1.18882224,2106.5,2105.9,1.707]
[1773369993661,0.002,2106.5,2105.9,3.06474464]
[1773369995087,0.002,2106.5,2105.9,4.25187521]
[1773369995267,0.002,2106.5,2105.9,6.25699524]
[1773369995439,0.002,2106.5,2106.0,10.99661664]
[1773369995644,0.002,2106.5,2105.9,4.8992506]
[1773369995645,0.002,2106.5,2106.1,1.35774464]
[1773369995865,0.002,2106.5,2105.9,8.46051156]
[1773369995866,1.51326024,2106.7,2106.2,1.708]
[1773369996077,1.51322356,2106.7,2106.2,1.708]
[1773369996545,0.32651383,2106.7,2106.2,1.708]
[1773369997687,0.21399741,2106.7,2106.4,1.18685909]
[1773369998046,0.002,2106.9,2106.4,2.54460373]
[1773369998261,0.002,2106.9,2106.5,3.36285554]
[1773369998571,0.002,2107.2,2106.7,1.35774464]
[1773369998772,1.18849505,2107.2,2106.7,1.35774464]
[1773369998955,1.18622231,2107.6,2106.9,1.35774464]
[1773369999151,1.18649505,2107.6,2106.9,1.35774464]
[1773369999364,2.37270635,2107.6,2107.0,1.708]
[1773369999659,1.18649505,2107.6,2107.1,2.54420944]
[1773369999864,4.66878563,2108.2,2107.2,3.36285554]
[1773369999865,4.74361624,2108.1,2107.2,3.36285554]
[1773370000060,1.30566542,2108.3,2107.3,1.35774464]
[1773370000266,1.30566542,2108.3,2107.4,1.709]
[1773370001252,1.30566542,2108.3,2107.5,1.709]
[1773370001867,1.18584574,2108.2,2107.5,2.89520866]
[1773370002061,1.18584574,2108.2,2107.6,1.709]
[1773370002682,4.98142043,2108.5,2107.6,5.06686904]
[1773370002683,1.18571111,2108.5,2107.6,5.06686904]
[1773370002884,1.18571111,2108.5,2107.8,9.638872]
[1773370003183,6.048369,2108.6,2107.8,9.638872]
[1773370003184,1.18565269,2108.6,2107.9,2.0001244]
[1773370003782,1.30566542,2108.9,2108.2,1.18584574]
[1773370003783,2.49115917,2108.9,2108.2,1.18584574]
[1773370003967,4.74142734,2109.1,2108.3,1.708]
[1773370004163,1.18533971,2109.1,2108.3,1.708]
[1773370004384,1.18533971,2109.1,2108.3,2.94572583]
[1773370005687,1.18533971,2109.1,2108.4,2.0001244]
[1773370005886,4.7407956,2109.4,2108.4,3.18580575]
[1773370006058,1.27846065,2109.3,2108.5,1.709]
[1773370006683,0.002,2108.6,2108.5,1.709]
[1773370006883,1.18517113,2109.4,2108.5,2.94672583]
[1773370007070,1.27846065,2109.3,2108.6,1.708]
[1773370007977,2.46374416,2109.2,2108.7,1.708]
[1773370008172,2.46374416,2109.2,2108.8,1.708]
[1773370008376,2.46374416,2109.2,2108.9,1.708]
[1773370008585,2.46374416,2109.2,2109.0,1.708]
[1773370008786,2.46374416,2109.2,2109.1,1.708]
[1773370009163,1.18528351,2109.2,2108.5,1.23772583]
[1773370009593,1.18528351,2109.2,2108.4,2.0001244]
[1773370010384,6.01959472,2109.3,2108.5,1.708]
[1773370010581,1.185216,2109.4,2108.7,2.0001244]
[1773370011106,1.185216,2109.4,2108.6,1.28479038]
[1773370011594,1.1851399,2109.5,2108.7,1.28479038]
[1773370011794,1.18510266,2109.6,2108.9,4.099717]
[1773370011995,1.1869801,2109.8,2108.9,1.28479038]
[1773370012198,1.1869801,2109.8,2109.0,7.53284038]
[1773370012497,1.1869801,2109.8,2109.2,2.47007389]
[1773370012498,0.002,2109.8,2109.2,2.47007389]
[1773370012697,0.002,2109.8,2109.3,1.708]
[1773370013196,0.002,2109.8,2109.4,1.708]
[1773370013699,0.002,2109.8,2109.5,1.708]
[1773370014070,0.002,2109.8,2109.1,2.75030068]
[1773370014071,0.002,2109.8,2109.1,1.18530068]
[1773370014275,0.002,2109.8,2109.3,1.18522732]
[1773370014478,0.002,2109.8,2109.2,2.89325057]
[1773370014673,1.30346756,2109.8,2108.9,1.28479038]
[1773370014910,1.30346756,2109.8,2109.0,1.707]
[1773370015373,1.30346756,2109.8,2109.1,1.28479038]
[1773370015374,0.002,2109.8,2109.1,1.28479038]
[1773370016376,0.002,2109.8,2109.1,2.47009186]
[1773370016781,1.30346756,2109.8,2108.5,2.84679038]
[1773370017098,1.30346756,2109.8,2108.8,9.62830438]
[1773370017292,1.30346756,2109.8,2108.9,0.04741808]
[1773370018289,1.30346756,2109.8,2109.0,2.971504]
[1773370018485,0.002,2109.6,2108.8,2.47126532]
[1773370018686,1.30346756,2109.6,2108.9,1.707]
[1773370019613,0.002,2109.6,2109.0,1.33220621]
[1773370019776,0.002,2109.6,2108.6,4.74203338]
[1773370019777,1.30146756,2109.0,2108.5,0.001]
[1773370019982,1.30146756,2108.9,2108.3,0.001]
[1773370020203,1.30146756,2109.2,2108.3,0.04943157]
[1773370020482,1.18522732,2109.3,2108.5,1.18563386]
[1773370020685,1.30146756,2109.2,2108.3,0.002]
[1773370021182,1.30146756,2109.2,2108.3,1.18778926]
[1773370021382,1.30146756,2109.2,2108.4,1.693]
[1773370021797,1.30146756,2109.2,2108.5,0.04742708]
[1773370021993,1.30146756,2109.2,2108.3,0.002]
[1773370022200,1.30146756,2109.2,2108.6,1.696]
[1773370022701,1.18533971,2109.1,2108.6,1.696]
[1773370024203,2.48680727,2109.1,2108.6,1.696]
[1773370026390,1.18533971,2109.1,2108.7,0.04742258]
[1773370026588,4.74059575,2109.5,2108.8,0.001]
[1773370026779,4.74059575,2109.5,2108.6,2.88158699]
[1773370027120,4.74059575,2109.5,2108.7,0.001]
[1773370027409,1.18711495,2109.6,2108.7,1.18655692]
[1773370027647,2.48858251,2109.6,2108.7,1.18655692]
[1773370027778,0.002,2109.6,2108.7,2.4713473]
[1773370027982,1.30346756,2109.6,2108.8,0.02270827]
[1773370028204,1.30346756,2109.6,2108.9,1.708]
[1773370028805,1.30346756,2109.6,2109.0,0.001]
[1773370029207,1.18511495,2109.5,2109.0,0.001]
[1773370029506,1.18511495,2109.5,2109.0,0.04841583]
[1773370029713,1.18710265,2109.6,2109.0,0.04841583]
[1773370030210,1.30146756,2109.5,2109.1,1.711]
[1773370031610,1.30146756,2109.5,2108.4,4.03447931]
[1773370031611,1.71199999,2109.2,2108.4,4.03447931]
[1773370032136,3.01346755,2109.2,2108.5,0.001]
[1773370032296,3.01346755,2109.2,2108.8,0.001]
[1773370032498,1.71199999,2109.2,2108.8,0.001]
[1773370032725,1.30146756,2109.1,2108.8,0.001]
[1773370032935,1.30146756,2109.1,2108.9,1.713]
[1773370033124,1.30146756,2109.1,2108.8,0.001]
[1773370033806,1.18539592,2109.0,2108.8,0.001]
[1773370034397,1.18539592,2109.0,2108.9,1.714]
[1773370035207,1.18539592,2109.0,2108.5,0.001]
[1773370035402,1.18539592,2109.0,2108.6,0.001]
[1773370036420,2.48681178,2109.1,2108.6,0.001]
[1773370036729,2.89730831,2109.2,2108.7,1.715]
[1773370037109,1.18530832,2109.2,2108.7,1.715]
[1773370037340,1.18526043,2109.3,2108.8,0.001]
[1773370038901,1.18718592,2109.4,2108.8,0.001]
[1773370039240,1.18718592,2109.4,2108.9,1.716]
[1773370039440,1.30146756,2109.3,2108.8,0.001]
[1773370040147,1.18718592,2109.4,2108.8,0.001]
[1773370040148,0.002,2109.4,2108.8,0.001]
[1773370040307,0.002,2109.4,2108.8,1.33321071]
[1773370040502,0.002,2109.4,2108.8,1.28579038]
[1773370041017,0.002,2109.4,2108.9,1.716]
[1773370041517,1.4149988,2109.4,2109.0,0.001]
[1773370042037,1.4149988,2109.4,2108.9,1.716]
[1773370042335,1.18522732,2109.3,2108.9,1.717]
[1773370044644,1.18717417,2109.4,2108.9,3.13642173]
[1773370044817,0.002,2109.4,2109.0,1.46683756]
[1773370045023,1.18706729,2109.6,2109.0,1.41942173]
[1773370045217,1.18706729,2109.6,2109.1,0.001]
[1773370045425,1.18706093,2109.6,2109.1,0.001]
[1773370045631,0.002,2109.9,2109.2,1.41942173]
[1773370045838,0.002,2109.9,2109.4,10.36762673]
[1773370046043,0.002,2109.9,2109.4,1.41942173]
[1773370046346,1.18689787,2109.9,2109.4,1.41942173]
[1773370046726,0.002,2109.9,2109.4,2.60456137]
[1773370046929,0.002,2109.9,2109.5,0.001]
[1773370047546,0.002,2109.9,2109.6,1.715]
[1773370048054,0.002,2109.7,2109.5,0.001]
[1773370048241,0.002,2110.0,2109.4,4.16856137]
[1773370048242,0.002,2110.0,2109.6,1.715]
[1773370049033,0.002,2110.0,2109.7,0.001]
[1773370049953,1.18670844,2110.3,2109.7,1.42042173]
[1773370050437,1.4129988,2110.2,2109.8,1.715]
[1773370050947,1.18477797,2110.1,2109.3,1.41942173]
[1773370051256,2.59777677,2110.1,2109.4,1.715]
[1773370051756,2.59777677,2110.1,2109.5,0.001]
[1773370053542,1.4129988,2110.0,2109.5,0.001]
[1773370054630,1.18477797,2110.1,2109.5,1.42042173]
[1773370054831,1.18475739,2110.2,2109.5,1.42042173]
[1773370055459,2.59968737,2110.3,2109.5,0.001]
[1773370055843,1.4129988,2110.2,2109.6,1.713]
[1773370057133,1.4129988,2110.2,2109.7,0.001]
[1773370057335,1.4129988,2110.2,2109.4,0.001]
[1773370057634,2.59777677,2110.1,2109.4,0.001]
[1773370057945,1.4129988,2110.0,2109.4,0.001]
[1773370058133,1.18667301,2110.3,2109.6,4.24557073]
[1773370058457,1.18667301,2110.3,2109.3,2.0001244]
[1773370058458,1.4129988,2110.2,2109.7,1.713]
[1773370059461,1.4129988,2110.2,2109.8,0.001]
[1773370059661,1.4129988,2110.2,2109.5,0.001]
[1773370059662,1.18477797,2110.1,2109.5,0.001]
[1773370059828,1.18477797,2110.1,2109.6,0.001]
[1773370060032,0.002,2109.9,2109.6,1.42042173]
[1773370060262,0.002,2109.9,2109.6,0.001]
[1773370060749,0.002,2109.9,2109.7,1.713]
[1773370061269,0.002,2109.9,2109.6,0.001]
[1773370062765,0.002,2109.9,2109.7,1.713]
[1773370063147,0.002,2109.9,2109.4,0.001]
[1773370063763,1.18689027,2109.9,2109.4,0.001]
[1773370064563,2.66609427,2109.9,2109.4,0.001]
[1773370064762,2.66609427,2109.9,2109.5,1.712]
[1773370065136,2.66609427,2109.9,2109.1,1.48178474]
[1773370065463,2.66609427,2109.9,2109.2,1.48078474]
[1773370065464,1.18689027,2109.9,2109.2,1.48078474]
[1773370066964,1.18689027,2109.9,2109.3,1.711]
[1773370067166,1.18689027,2109.9,2109.2,1.48078474]
[1773370067379,2.66609427,2109.9,2109.2,1.48078474]
[1773370069276,2.66609427,2109.9,2109.1,0.001]
[1773370069277,1.479204,2109.8,2109.1,0.001]
[1773370071278,1.1850026,2109.7,2109.1,0.001]
[1773370071486,1.18499238,2109.8,2109.2,3.13175437]
[1773370074172,1.18499238,2109.8,2109.4,0.001]
[1773370074475,0.002,2109.7,2109.4,0.001]
[1773370080372,0.002,2109.9,2109.5,1.40623614]
[1773370080689,1.18689052,2109.9,2109.5,1.40623614]
[1773370082593,1.37836778,2109.9,2109.6,1.702]
[1773370083091,1.37836778,2109.9,2109.4,0.001]
[1773370084302,1.37836778,2109.9,2109.5,1.701]
[1773370085101,1.18494644,2109.8,2109.4,0.001]
[1773370086301,1.18494644,2109.8,2109.5,1.7]
[1773370087109,1.18494644,2109.8,2109.4,0.001]
[1773370087603,1.18494644,2109.8,2109.4,1.38343797]
[1773370087801,1.18494644,2109.8,2109.5,0.03095559]
[1773370087802,0.002,2109.7,2109.5,0.03095559]
[1773370088104,0.002,2109.7,2109.4,0.001]
[1773370088492,0.002,2109.7,2109.5,1.698]
[1773370091780,0.002,2109.9,2109.6,1.36677996]
[1773370093905,1.37836778,2109.9,2109.7,1.695]
[1773370094113,1.37836778,2109.9,2109.4,0.001]
[1773370094307,0.002,2109.9,2109.5,1.35608537]
[1773370094482,1.18488046,2110.0,2109.6,1.35608537]
[1773370095610,1.18488046,2110.0,2109.7,3.08225199]
[1773370099598,4.97851874,2110.1,2109.7,3.08225199]
[1773370099599,1.42402154,2110.1,2109.7,3.08225199]
[1773370100314,2.56303636,2110.3,2109.8,3.50397498]
[1773370100513,1.37636778,2110.2,2109.8,5.85627]
[1773370100729,0.002,2110.0,2109.7,1.563]
[1773370100890,1.43317589,2110.0,2109.9,1.692]
[1773370101816,1.43317589,2110.0,2109.6,1.564]
[1773370101817,1.43117589,2109.8,2109.6,1.564]
[1773370102001,2.61606616,2109.9,2109.7,1.691]
[1773370102501,4.74156111,2110.0,2109.7,1.691]
[1773370102502,0.002,2110.0,2109.7,1.691]
[1773370103888,0.002,2110.0,2109.7,3.67010696]
[1773370105115,0.002,2110.0,2109.7,2.48510952]
[1773370106186,0.002,2110.0,2109.7,3.67011007]
[1773370106609,0.002,2110.0,2109.7,2.48510952]
[1773370106815,0.002,2110.0,2109.7,1.691]
[1773370108113,0.002,2110.0,2109.7,2.875995]
[1773370108314,0.002,2110.0,2109.7,1.691]
[1773370108519,0.002,2110.0,2109.7,2.87595086]
[1773370108819,0.002,2110.0,2109.7,3.6745812]
[1773370109917,0.002,2110.0,2109.7,4.44716766]
[1773370110275,0.002,2110.0,2109.7,1.691]
[1773370110725,0.002,2110.0,2109.7,2.46000824]
[1773370111097,0.002,2110.0,2109.7,3.6450096]
[1773370111502,0.002,2110.0,2109.7,2.46000824]
[1773370112329,0.002,2110.0,2109.7,3.64500037]
[1773370112697,0.002,2110.0,2109.7,2.87599823]
[1773370113112,2.8524735,2110.3,2109.8,1.5604863]
[1773370113327,2.8524735,2110.3,2109.9,0.001]
[1773370113519,1.43317589,2110.3,2109.9,0.03194972]
[1773370113825,0.002,2110.0,2109.9,0.03194972]
[1773370114022,2.61785673,2110.3,2109.9,0.03194972]
[1773370114430,2.61785673,2110.3,2109.9,0.78472102]
[1773370114813,2.61785673,2110.3,2109.9,0.7537713]
[1773370116334,2.61785673,2110.3,2110.0,1.54432949]
[1773370116335,0.002,2110.3,2110.0,1.54432949]
[1773370116535,1.43117589,2110.2,2109.9,0.001]
[1773370117108,0.002,2110.3,2109.9,0.74669915]
[1773370117814,0.002,2110.3,2110.0,0.79863034]
[1773370118200,0.002,2110.3,2110.1,1.689]
[1773370118429,1.43317589,2110.4,2110.1,1.689]
[1773370118628,0.002,2110.5,2110.1,2.42758484]
[1773370119033,0.002,2110.5,2110.1,3.61234215]
[1773370119034,1.18655342,2110.5,2110.1,3.61234215]
[1773370119732,1.43117589,2110.4,2110.1,1.689]
[1773370119935,1.43117589,2110.4,2110.0,1.563]
[1773370121229,1.18466568,2110.3,2110.1,3.251]
[1773370122009,1.18462364,2110.4,2110.1,3.251]
[1773370122223,0.002,2110.5,2110.1,5.16381763]
[1773370122434,0.002,2110.5,2110.2,0.79863034]
[1773370122926,4.73719413,2111.0,2110.5,1.31735604]
[1773370123131,0.002,2111.4,2110.6,2.88035604]
[1773370123132,1.1080356,2111.4,2110.6,2.88035604]
[1773370123351,1.1080356,2111.4,2110.7,1.563]
[1773370123522,1.11102492,2111.2,2110.8,1.688]
[1773370123711,1.11102492,2111.2,2110.5,1.563]
[1773370123712,1.11102492,2111.2,2110.9,1.688]
[1773370124213,1.11102492,2111.2,2110.2,2.09295817]
[1773370124418,1.11102492,2111.2,2110.2,3.65595817]
[1773370125212,1.3384255,2111.0,2110.2,4.84067482]
[1773370125438,1.3384255,2111.0,2110.3,4.54594159]
[1773370126437,0.002,2110.6,2110.3,4.54594159]
[1773370128235,0.002,2110.6,2110.4,3.251]
[1773370129633,0.002,2110.6,2110.5,1.29494159]
[1773370130023,0.002,2110.6,2110.2,2.09295817]
[1773370130226,0.002,2110.6,2110.5,1.563]
[1773370131949,0.002,2110.6,2110.5,3.251]
[1773370133253,0.002,2110.6,2110.3,1.43008763]
[1773370133646,0.002,2110.6,2110.2,3.79110421]
[1773370134357,0.002,2110.6,2110.3,3.252]
[1773370134742,0.002,2110.6,2110.3,4.68208763]
[1773370135060,0.002,2110.6,2110.4,3.252]
[1773370135266,0.002,2110.6,2110.1,1.18573603]
[1773370135267,1.38788296,2110.6,2110.1,0.001]
[1773370135561,1.38788296,2110.6,2110.2,3.252]
[1773370135755,0.002,2110.6,2110.3,1.43008763]
[1773370135956,0.002,2110.6,2110.4,2.99308763]
[1773370136155,0.002,2110.6,2110.4,1.43008763]
[1773370136572,0.002,2110.6,2110.2,2.99308763]
[1773370136977,0.002,2110.6,2110.3,3.43008763]
[1773370137184,0.002,2110.6,2110.4,1.43008763]
[1773370137676,0.002,2110.6,2110.5,3.253]
[1773370137858,0.002,2110.6,2110.5,4.68308763]
[1773370143562,0.002,2110.6,2110.5,5.86764105]
[1773370143878,1.41646914,2111.0,2110.6,1.43008763]
[1773370144170,1.41646914,2111.0,2110.6,1.4610264]
[1773370144171,1.18430848,2111.0,2110.6,1.4610264]
[1773370144582,1.18603206,2111.5,2110.9,1.43008763]
[1773370144774,0.002,2111.5,2111.2,2.6142329]
[1773370144954,0.002,2111.5,2111.3,1.692]
[1773370145475,0.002,2111.5,2111.4,3.256]
[1773370145979,0.002,2111.5,2111.4,4.68608763]
[1773370147375,0.002,2111.5,2111.4,2.99308763]
[1773370147582,0.002,2111.5,2111.4,4.68608763]
[1773370150486,0.002,2111.7,2111.5,1.43008763]
[1773370151183,0.002,2111.7,2111.4,3.256]
[1773370151184,0.002,2111.7,2111.4,4.68608763]
[1773370151383,0.002,2111.7,2111.4,1.43008763]
[1773370151587,1.3601073,2111.6,2111.1,1.43008763]
[1773370151962,0.002,2111.5,2111.1,1.43008763]
[1773370152160,1.3621073,2111.5,2111.0,1.563]
[1773370152387,1.3621073,2111.5,2110.9,2.99308763]
[1773370152585,0.002,2111.5,2111.0,1.43008763]
[1773370152760,0.002,2111.5,2111.1,3.258]
[1773370153083,1.36008223,2111.5,2111.0,1.43008763]
[1773370153259,1.36008223,2111.5,2111.1,3.257]
[1773370153860,2.54009056,2111.4,2111.1,3.257]
[1773370154057,1.35604207,2111.3,2111.0,0.04737091]
[1773370154261,1.35604207,2111.3,2110.8,1.43108763]
[1773370154460,1.35604207,2111.3,2110.9,0.04737315]
[1773370155061,1.35604207,2111.3,2110.6,1.43008763]
[1773370155305,1.35604207,2111.3,2110.7,6.25008763]
[1773370155566,1.35604207,2111.3,2110.8,1.47746303]
[1773370158492,1.18416066,2111.2,2110.8,1.47746303]
[1773370158688,1.18416066,2111.2,2110.9,1.562]
[1773370158689,1.54370931,2111.1,2110.9,1.562]
[1773370158990,1.54370931,2111.1,2110.6,2.99208763]
[1773370159984,1.54370931,2111.1,2110.6,1.562]
[1773370160294,1.54370931,2111.1,2110.7,3.259]
[1773370160479,2.60819782,2111.0,2110.7,3.259]
[1773370160878,2.60819782,2111.0,2110.7,3.30637764]
[1773370161078,2.60819782,2111.0,2110.6,2.97007705]
[1773370161389,1.18427285,2111.0,2110.7,0.02368868]
[1773370161573,1.42392497,2111.0,2110.6,2.97007705]
[1773370161897,1.42392497,2111.0,2110.7,0.02368868]
[1773370162079,1.1842393,2111.1,2110.7,0.02368868]
[1773370162683,1.1842393,2111.1,2110.8,1.698]
[1773370162884,2.60816427,2111.1,2110.8,1.698]
[1773370163975,2.60816427,2111.1,2110.8,1.699]
[1773370164180,0.002,2110.9,2110.6,2.97007705]
[1773370164381,0.002,2110.9,2110.7,1.40807705]
[1773370165704,0.002,2110.9,2110.5,1.40907705]
[1773370165705,1.42592497,2110.9,2110.5,1.40907705]
[1773370165877,0.002,2110.9,2110.7,2.97007705]
[1773370166207,0.002,2110.9,2110.8,0.02368756]
[1773370167003,0.002,2110.9,2110.8,2.61614967]
[1773370167206,1.18609029,2111.4,2111.0,1.40807705]
[1773370167381,2.61001526,2111.4,2111.0,1.43174441]
[1773370167894,2.61001526,2111.4,2111.1,1.698]
[1773370168278,2.61001526,2111.4,2111.1,3.90409363]
[1773370168279,0.002,2111.4,2111.1,3.90409363]
[1773370168679,0.002,2111.4,2111.2,1.562]
[1773370168874,0.002,2111.5,2111.3,3.10707705]
[1773370171182,0.002,2111.5,2111.3,1.699]
[1773370174009,1.42592497,2111.5,2111.2,1.562]
[1773370174208,1.42592497,2111.5,2111.0,0.02365951]
[1773370174597,1.42592497,2111.5,2111.0,1.20792726]
[1773370174800,1.42592497,2111.5,2111.0,0.02365951]
[1773370175386,1.42592497,2111.5,2111.1,3.262]
[1773370177611,2.60797346,2111.4,2111.1,3.262]
[1773370177840,0.002,2111.3,2111.1,3.262]
[1773370179734,0.002,2111.8,2111.1,3.262]
[1773370179735,0.002,2112.1,2111.3,1.40807705]
[1773370179912,0.002,2112.1,2111.4,1.562]
[1773370179913,1.42392497,2111.9,2111.4,1.562]
[1773370180211,1.42392497,2111.7,2110.9,2.59240543]
[1773370180412,1.42392497,2111.7,2111.0,0.02365412]
[1773370180784,1.42392497,2111.8,2111.2,3.40807705]
[1773370180990,1.42392497,2111.8,2111.2,1.562]
[1773370181222,1.18371212,2112.0,2111.3,3.264]
[1773370181223,1.42592497,2111.7,2111.3,3.264]
[1773370181528,1.42392497,2111.7,2111.3,3.264]